bitfinex/quotes_ETHUSD_20250129
["timestamp","ask_amount","ask_price","bid_price","bid_amount"]
[1738131856051,0.22846667,3145.4,3145.3,4.94582809]
[1738131856462,0.22846667,3145.4,3145.3,4.9776171]
[1738131856796,0.22846667,3145.4,3145.3,5.35170328]
[1738131857154,0.22846667,3145.4,3145.3,2.17236328]
[1738131857392,0.22846667,3145.4,3145.3,2.14057427]
[1738131859010,0.22846667,3145.4,3145.3,5.35170346]
[1738131859571,0.22846667,3145.4,3145.3,8.90170346]
[1738131859808,0.22846667,3145.4,3145.3,8.86991427]
[1738131860508,0.22846667,3145.4,3145.3,9.36285425]
[1738131860991,0.80285394,3146.4,3145.3,9.36285425]
[1738131861203,0.80285394,3146.4,3146.1,4.01143]
[1738131861504,0.80285394,3146.4,3146.2,3.18]
[1738131861755,0.80285394,3146.4,3146.2,3.25922016]
[1738131862062,3.98111394,3146.4,3146.2,3.25922016]
[1738131862481,3.98111394,3146.4,3146.3,0.23440447]
[1738131862681,3.98111394,3146.4,3146.3,0.3130838]
[1738131863293,4.78401394,3146.4,3146.3,0.3130838]
[1738131863513,4.78401394,3146.4,3146.3,0.23440447]
[1738131863716,3.17857,3146.1,3145.5,3.95792]
[1738131863870,3.17857,3146.1,3145.6,3.894706]
[1738131864213,0.80285394,3146.4,3146.0,3.17861]
[1738131864368,0.80285394,3146.4,3145.9,3.21178131]
[1738131864705,0.80285394,3146.4,3145.9,6.39049131]
[1738131864875,0.80285394,3146.4,3146.0,0.1104679]
[1738131865075,0.80285394,3146.4,3146.1,0.32904679]
[1738131865704,3.98108394,3146.4,3146.2,0.07868576]
[1738131866323,0.80285394,3146.4,3146.2,0.07868576]
[1738131868207,3.17833,3146.3,3146.2,0.07868576]
[1738131868518,0.80285394,3146.4,3146.2,0.07868576]
[1738131868906,0.80285394,3146.4,3145.9,6.35868]
[1738131869121,0.80285394,3146.4,3146.3,0.07861496]
[1738131869342,0.80285394,3146.4,3146.0,0.953744]
[1738131869843,0.80285394,3146.4,3146.1,0.07861496]
[1738131870706,3.17834,3146.3,3146.1,0.07861496]
[1738131870949,3.17843,3146.2,3146.1,0.07861496]
[1738131871130,3.17843,3146.2,3146.1,0.31253821]
[1738131871335,3.17843,3146.2,3146.1,0.23392325]
[1738131871535,3.17843,3146.2,3146.1,0.31253821]
[1738131871737,3.93286,3146.3,3146.1,0.31253821]
[1738131872659,3.17843,3146.2,3146.1,0.31253821]
[1738131873160,3.17843,3146.2,3146.1,0.07861496]
[1738131873456,3.17843,3146.2,3145.8,0.23392325]
[1738131873457,3.17861,3146.1,3145.8,0.23392325]
[1738131874023,3.17843,3146.2,3145.8,0.23392325]
[1738131874235,3.98109394,3146.4,3145.9,0.34128433]
[1738131874422,3.17833,3146.3,3145.9,0.34128433]
[1738131874624,3.1785,3146.2,3145.9,0.34128433]
[1738131874912,3.1785,3146.2,3145.7,3.181]
[1738131875126,3.1785,3146.2,3145.7,6.35993]
[1738131875326,3.1785,3146.2,3145.7,3.181]
[1738131875525,3.1785,3146.2,3145.7,6.35993]
[1738131875768,3.1785,3146.2,3145.7,3.181]
[1738131875919,3.1785,3146.2,3145.8,0.23392325]
[1738131877760,3.1787,3146.0,3145.8,0.23392325]
[1738131877918,4.0062,3146.0,3145.9,0.07610419]
[1738131878217,4.0062,3146.0,3145.8,0.23392325]
[1738131878218,3.17874,3145.9,3145.8,0.23392325]
[1738131878754,3.17874,3145.9,3145.8,0.31002744]
[1738131879522,3.17874,3145.9,3145.8,0.07610419]
[1738131879943,4.0062,3146.0,3145.4,3.17923]
[1738131880147,4.0062,3146.0,3145.8,0.07624563]
[1738131880350,4.0062,3146.0,3145.5,0.66259437]
[1738131880544,4.0062,3146.0,3145.9,0.07624563]
[1738131880745,3.17876,3145.9,3145.4,3.17923]
[1738131880933,3.17876,3145.9,3145.4,6.36023]
[1738131881137,3.17876,3145.9,3145.4,7.42056633]
[1738131881653,3.17876,3145.9,3145.6,0.23392325]
[1738131882362,0.8275,3146.0,3145.6,0.23392325]
[1738131882522,4.00617,3146.0,3145.6,0.23392325]
[1738131882959,4.00617,3146.0,3145.7,0.23392325]
[1738131883557,7.18489,3146.0,3145.7,0.23392325]
[1738131883958,4.00617,3146.0,3145.5,0.23392325]
[1738131884161,3.17884,3145.8,3145.5,0.23392325]
[1738131884525,7.18489,3146.0,3145.5,0.23392325]
[1738131884827,4.00617,3146.0,3145.6,0.23392325]
[1738131885027,7.1849,3146.0,3145.6,0.23392325]
[1738131885528,4.00617,3146.0,3145.6,0.23392325]
[1738131885834,3.1788,3145.9,3145.6,0.23392325]
[1738131886361,0.1617814,3146.4,3145.6,0.23392325]
[1738131886362,3.17862,3146.1,3145.6,0.23392325]
[1738131886562,6.35724,3146.1,3145.7,0.23392325]
[1738131886962,3.17862,3146.1,3145.8,0.8122]
[1738131887167,0.1617814,3146.4,3145.9,3.17864]
[1738131887365,0.1617814,3146.4,3146.0,3.86023563]
[1738131887532,0.1617814,3146.4,3146.0,3.8284523]
[1738131888072,0.1617814,3146.4,3146.0,4.06237555]
[1738131888651,0.1617814,3146.4,3146.0,7.24100555]
[1738131888855,0.1617814,3146.4,3146.1,0.29320951]
[1738131889181,0.1617814,3146.4,3146.2,0.75341451]
[1738131889381,0.1617814,3146.4,3146.3,0.7882]
[1738131889685,0.1617814,3146.4,3146.2,0.75341451]
[1738131890257,0.1617814,3146.4,3146.3,3.96653]
[1738131891091,0.1617814,3146.4,3146.3,4.20045325]
[1738131891380,0.1617814,3146.4,3146.3,5.30057247]
[1738131891749,0.1617814,3146.4,3146.3,8.55057247]
[1738131891959,0.1617814,3146.4,3146.3,9.61371245]
[1738131892163,1.4e-06,3146.4,3146.3,9.61371245]
[1738131892359,3.17684,3147.8,3146.7,3.17793]
[1738131892559,3.17679,3147.9,3146.7,10.800927]
[1738131892560,3.80980715,3147.3,3146.7,10.800927]
[1738131892934,3.80980715,3147.3,3146.7,10.87673556]
[1738131892935,0.63246715,3147.3,3146.7,10.87673556]
[1738131893682,0.63246715,3147.3,3146.7,11.48586609]
[1738131893992,1.45066715,3147.3,3146.7,8.30793609]
[1738131894144,0.63246715,3147.3,3146.7,11.48586609]
[1738131894482,0.63246715,3147.3,3146.7,13.94776082]
[1738131894882,3.17684,3147.8,3146.7,13.94776082]
[1738131895184,3.17694,3147.7,3146.7,13.94776082]
[1738131895981,6.35396,3147.7,3146.7,13.94776082]
[1738131896391,3.17694,3147.7,3146.7,13.94776082]
[1738131897382,3.99492,3147.9,3146.7,14.49776082]
[1738131897558,3.17691,3147.8,3146.7,14.49776082]
[1738131897759,3.99492,3147.9,3146.7,14.49776082]
[1738131897972,3.17693,3147.7,3146.7,14.49776082]
[1738131898344,3.17683,3147.8,3146.7,14.49776082]
[1738131898680,3.17693,3147.7,3146.7,14.49776082]
[1738131899486,3.17693,3147.7,3146.7,13.94776082]
[1738131900650,3.17735,3147.3,3146.7,11.48586609]
[1738131900875,0.7761,3147.4,3146.7,8.30793609]
[1738131901083,3.17749,3147.2,3146.7,8.30793609]
[1738131901284,3.17742,3147.3,3146.7,11.48586609]
[1738131901583,3.17748,3147.2,3146.7,8.30793609]
[1738131902143,6.355,3147.2,3146.7,8.30793609]
[1738131902469,3.17748,3147.2,3146.7,7.12432881]
[1738131902667,3.17758,3147.1,3146.7,7.12432881]
[1738131903499,3.96513,3146.9,3146.7,3.48873181]
[1738131903797,3.17754,3147.1,3146.7,3.25480856]
[1738131904297,0.81,3147.2,3146.7,3.25480856]
[1738131904496,3.17736,3147.3,3146.7,7.18763856]
[1738131905002,0.64686392,3147.5,3146.7,10.18763856]
[1738131905363,3.17726,3147.4,3146.7,10.18763856]
[1738131905564,0.7746,3147.6,3146.7,10.18763856]
[1738131905759,3.95169,3147.6,3146.7,10.18763856]
[1738131906095,0.7746,3147.6,3146.7,10.18763856]
[1738131906301,0.7746,3147.6,3146.7,12.64953329]
[1738131906461,0.7746,3147.6,3146.7,14.46566264]
[1738131906794,3.17677,3147.9,3146.7,14.95860262]
[1738131906997,0.786,3147.9,3146.7,15.50860262]
[1738131907297,3.9628,3147.9,3146.7,15.96494735]
[1738131907499,3.17688,3147.8,3146.7,15.50860262]
[1738131908361,3.17688,3147.8,3146.7,15.88183619]
[1738131910505,3.17703,3147.6,3146.7,15.88183619]
[1738131910911,3.17703,3147.6,3146.7,15.33183619]
[1738131911095,3.17713,3147.5,3146.7,15.57583619]
[1738131912081,3.17713,3147.5,3146.7,15.20260262]
[1738131912286,3.17713,3147.5,3146.7,14.70966264]
[1738131912686,3.17693,3147.7,3146.7,14.70966264]
[1738131912875,3.17693,3147.7,3146.7,15.20260262]
[1738131913400,3.17704,3147.6,3146.7,15.20260262]
[1738131914015,3.17693,3147.7,3146.7,15.20260262]
[1738131914605,3.17705,3147.6,3146.7,15.20260262]
[1738131914918,3.17705,3147.6,3146.7,15.57645092]
[1738131915412,0.7826,3147.3,3146.7,15.08351094]
[1738131916116,3.95299,3147.5,3146.7,15.08351094]
[1738131916719,0.7758,3147.5,3146.7,15.08351094]
[1738131916924,3.17724,3147.4,3146.7,15.08351094]
[1738131917091,3.17724,3147.4,3146.7,14.83951094]
[1738131917296,3.17744,3147.2,3146.7,8.44478621]
[1738131917510,0.7896,3147.0,3146.7,6.86203288]
[1738131919819,3.17773,3146.9,3146.7,3.86203288]
[1738131920185,3.18771249,3146.8,3146.7,0.68303288]
[1738131920617,0.00988249,3146.8,3146.7,0.68303288]
[1738131921199,0.00988249,3146.8,3146.7,0.30918458]
[1738131921726,0.00988249,3146.8,3146.7,6.66611458]
[1738131921901,0.00988249,3146.8,3146.7,7.76341687]
[1738131922626,0.00988249,3146.8,3146.7,8.13726517]
[1738131922826,0.00988249,3146.8,3146.7,11.13726517]
[1738131925533,0.78388249,3146.8,3146.7,7.95933517]
[1738131925698,0.78388249,3146.8,3146.7,3.86203288]
[1738131927009,0.78388249,3146.8,3146.7,0.68303288]
[1738131927407,0.78388249,3146.8,3146.7,0.30918458]
[1738131929916,3.96171249,3146.8,3146.7,0.30918458]
[1738131931838,0.78388249,3146.8,3146.7,0.30918458]
[1738131932194,0.00988249,3146.8,3146.7,0.30918458]
[1738131932599,0.00988249,3146.8,3146.7,0.65790704]
[1738131933348,0.00988249,3146.8,3146.7,3.83583704]
[1738131933726,0.00988249,3146.8,3146.7,0.65790704]
[1738131936562,0.00988249,3146.8,3146.7,3.83583704]
[1738131936739,0.00988249,3146.8,3146.7,7.04761394]
[1738131936930,0.00988249,3146.8,3146.7,10.38968534]
[1738131938360,0.00988249,3146.8,3146.7,7.21175534]
[1738131938813,0.00988249,3146.8,3146.7,6.86303288]
[1738131940364,0.00988249,3146.8,3146.7,10.04096288]
[1738131944041,0.00988249,3146.8,3146.7,6.86303288]
[1738131945140,0.00988249,3146.8,3146.7,3.86303288]
[1738131946730,0.00988249,3146.8,3146.7,3.48918458]
[1738131948689,0.81278249,3146.8,3146.7,0.30918458]
[1738131948989,3.99061249,3146.8,3146.7,0.30918458]
[1738131949284,4.95363621,3146.8,3146.7,0.23337602]
[1738131949771,0.7896,3146.7,3145.6,3.0]
[1738131950082,0.7896,3146.0,3145.7,0.07215829]
[1738131950461,0.7896,3146.0,3145.5,3.181]
[1738131950784,3.17876,3145.9,3145.6,0.07215829]
[1738131950980,3.17876,3145.9,3145.8,0.23422972]
[1738131951280,0.7896,3146.0,3145.8,0.23422972]
[1738131951499,0.7896,3146.0,3145.8,0.30638801]
[1738131952343,0.7896,3146.0,3145.8,0.07215829]
[1738131952750,3.17874,3145.9,3145.6,0.23422972]
[1738131956289,3.17894,3145.7,3145.6,0.23422972]
[1738131956510,3.94794,3145.7,3145.6,0.23422972]
[1738131957495,3.94794,3145.7,3144.8,0.7709]
[1738131957496,3.17933,3145.4,3144.9,0.23422972]
[1738131957647,3.17933,3145.4,3145.0,3.181]
[1738131959096,3.17943,3145.3,3145.0,3.181]
[1738131959267,3.17954,3145.1,3145.0,3.181]
[1738131959667,3.17966,3145.0,3144.6,3.182]
[1738131959864,3.17966,3145.0,3144.6,3.924106]
[1738131961201,3.17959,3145.1,3144.6,3.924106]
[1738131964561,6.35922,3145.1,3144.6,3.924106]
[1738131964761,3.17983,3144.9,3144.3,3.0]
[1738131964987,3.17983,3144.9,3144.4,3.182]
[1738131965495,3.17997,3144.7,3144.4,3.182]
[1738131966090,3.17983,3144.9,3144.4,3.182]
[1738131966478,3.95429,3144.7,3143.9,3.94341]
[1738131966695,3.18022,3144.5,3144.0,3.182]
[1738131966899,3.95429,3144.7,3144.0,3.182]
[1738131967330,3.18017,3144.5,3144.0,3.182]
[1738131967630,3.18052,3144.2,3144.0,3.182]
[1738131967833,3.18076,3143.9,3143.4,0.767]
[1738131968032,3.98139,3143.7,3143.2,3.183]
[1738131968507,3.18117,3143.5,3143.2,3.183]
[1738131968708,3.18118,3143.5,3143.2,3.183]
[1738131970122,3.9814,3143.7,3143.2,3.183]
[1738131971412,3.18113,3143.6,3143.2,3.183]
[1738131971921,3.18139,3143.3,3142.6,0.7993]
[1738131972125,3.18163,3143.1,3142.7,3.51011947]
[1738131972998,3.18163,3143.1,3142.7,3.184]
[1738131974004,0.7508,3143.2,3142.7,3.184]
[1738131974205,3.9323,3143.2,3142.6,3.98135]
[1738131974419,0.8175,3143.6,3142.8,2.46189473]
[1738131974634,3.18097,3143.7,3143.1,0.8091]
[1738131974801,3.99837,3143.8,3143.1,3.99064]
[1738131975136,3.18107,3143.6,3143.1,0.8091]
[1738131975700,3.18123,3143.5,3143.1,0.8091]
[1738131975936,3.18107,3143.6,3142.8,0.7766]
[1738131975937,3.18143,3143.3,3142.8,0.7766]
[1738131976237,3.97893,3143.3,3142.8,3.9606]
[1738131976609,3.97893,3143.3,3142.6,3.0]
[1738131976610,3.18163,3143.1,3142.6,3.0]
[1738131976814,3.18163,3143.1,3142.6,6.184]
[1738131976999,3.97893,3143.3,3142.6,9.7045753]
[1738131977200,3.97893,3143.3,3142.6,6.5205753]
[1738131978545,3.97893,3143.3,3142.6,6.5205553]
[1738131978751,7.16039,3143.3,3142.6,6.5205553]
[1738131979635,3.97893,3143.3,3142.6,6.5205553]
[1738131980553,3.18118,3143.5,3143.0,3.18166]
[1738131980754,3.18118,3143.5,3143.0,3.95446]
[1738131980961,0.7599,3143.6,3143.0,3.95446]
[1738131981119,3.18101,3143.7,3143.0,3.95446]
[1738131981652,3.18101,3143.7,3143.1,3.18155]
[1738131981850,3.18101,3143.7,3143.1,6.36455]
[1738131982251,0.8107,3144.1,3143.2,0.03181359]
[1738131982415,0.8107,3144.1,3143.4,3.18116]
[1738131982416,3.18072,3144.0,3143.4,3.18116]
[1738131982617,3.18072,3144.0,3143.3,3.183]
[1738131982841,3.18086,3143.8,3143.3,3.183]
[1738131983025,3.18086,3143.8,3143.4,0.07466144]
[1738131985124,3.18072,3144.0,3143.4,0.07466144]
[1738131985524,3.18072,3144.0,3143.5,0.8185]
[1738131986066,3.18072,3144.0,3143.6,0.07431371]
[1738131987652,3.18076,3143.9,3143.6,0.07431371]
[1738131988157,3.18095,3143.8,3143.6,0.07431371]
[1738131988547,3.18095,3143.8,3143.2,3.93619]
[1738131988548,3.18113,3143.6,3143.2,0.7548]
[1738131989761,3.18098,3143.7,3143.2,3.93627]
[1738131989958,3.18098,3143.7,3143.2,0.7548]
[1738131990323,3.18098,3143.7,3143.3,0.23381033]
[1738131991880,3.18113,3143.6,3143.3,0.23381033]
[1738131993066,3.18113,3143.6,3143.4,0.23381033]
[1738131993354,3.18098,3143.7,3143.4,0.23381033]
[1738131993553,3.18116,3143.5,3143.4,0.23381033]
[1738131993982,3.18116,3143.5,3143.3,0.23381033]
[1738131994185,0.8275,3143.6,3143.3,0.23381033]
[1738131994357,4.00857,3143.6,3143.3,0.23381033]
[1738131994883,3.18126,3143.4,3143.3,0.23381033]
[1738131995082,3.18126,3143.4,3143.1,3.55709653]
[1738131995881,4.00857,3143.6,3143.1,3.55709653]
[1738131995882,7.18972,3143.6,3143.1,3.55709653]
[1738131996578,3.18133,3143.4,3143.2,0.60872645]
[1738131997080,3.18136,3143.3,3143.2,0.60872645]
[1738131997641,3.18136,3143.3,3143.2,0.23462992]
[1738131997975,3.18136,3143.3,3143.2,0.30894366]
[1738131997976,3.817617,3143.3,3143.2,0.30894366]
[1738131999456,3.817617,3143.3,3143.2,0.23462992]
[1738131999657,4.594117,3143.3,3143.2,0.30894366]
[1738131999873,4.594117,3143.3,3143.2,0.23462992]
[1738132000583,4.594117,3143.3,3142.9,0.23462992]
[1738132000893,3.96257,3143.0,3142.9,0.23462992]
[1738132002045,6.42446473,3143.0,3142.9,0.23462992]
[1738132002248,6.42446473,3143.0,3142.9,9.92e-06]
[1738132002481,3.96328,3142.3,3142.2,0.37409653]
[1738132003795,3.18335,3141.4,3141.1,0.7507]
[1738132004298,3.18335,3141.4,3141.2,0.07045383]
[1738132005162,3.18313,3141.6,3141.2,0.07045383]
[1738132005474,0.7758,3141.7,3141.2,0.07045383]
[1738132006895,3.1829,3141.8,3141.2,0.07045383]
[1738132007284,4.00371,3142.0,3141.2,0.78929621]
[1738132007464,4.00371,3142.0,3141.3,3.1833]
[1738132007798,4.00371,3142.0,3141.4,3.18328]
[1738132008027,4.00371,3142.0,3141.4,3.25450713]
[1738132008233,3.18271,3142.0,3141.4,3.25450713]
[1738132009220,3.18271,3142.0,3141.5,3.18318]
[1738132009423,3.1825,3142.2,3141.6,3.18303]
[1738132009632,3.9783,3142.6,3141.6,3.17672086]
[1738132009933,0.64929189,3142.9,3142.1,0.7571]
[1738132010138,1.2556117,3143.2,3142.6,3.18206]
[1738132010413,3.18171,3143.0,3142.4,3.93935]
[1738132010615,3.18178,3142.9,3142.4,0.7571]
[1738132010787,3.18178,3142.9,3142.5,0.07104664]
[1738132011110,3.18164,3143.1,3142.5,0.07104664]
[1738132011613,3.18174,3143.0,3142.5,0.07104664]
[1738132012207,3.1815,3143.2,3142.6,3.18207]
[1738132012390,3.1815,3143.2,3142.5,0.4720973]
[1738132012391,3.1816,3143.1,3142.5,0.4720973]
[1738132012591,3.1816,3143.1,3142.7,0.07074375]
[1738132012807,3.1816,3143.1,3142.4,3.93936]
[1738132013114,3.18167,3143.0,3142.4,3.93936]
[1738132013616,3.18167,3143.0,3142.5,0.07074375]
[1738132014616,3.18181,3142.9,3142.5,0.07074375]
[1738132014771,3.18167,3143.0,3142.5,0.07074375]
[1738132014976,3.18207,3142.7,3142.5,0.07074375]
[1738132015227,3.18216,3142.6,3142.1,0.8241]
[1738132015927,3.18194,3142.8,3142.1,4.00661]
[1738132016238,3.499857,3143.0,3142.1,4.00661]
[1738132016239,3.18169,3143.0,3142.1,4.00661]
[1738132016402,3.18169,3143.0,3142.3,3.18232]
[1738132016591,3.18169,3143.0,3142.4,3.18218]
[1738132017723,3.18178,3142.9,3142.3,3.18232]
[1738132018520,3.18163,3143.1,3142.5,3.18216]
[1738132018828,3.18163,3143.1,3142.1,0.8241]
[1738132018829,3.18221,3142.5,3142.1,0.8241]
[1738132018989,0.318221,3142.4,3141.7,0.8137]
[1738132019193,3.18261,3142.1,3141.7,0.8137]
[1738132020428,3.18242,3142.3,3141.7,0.8137]
[1738132020634,3.18242,3142.3,3141.7,3.99668]
[1738132021424,3.18265,3142.1,3141.7,0.8137]
[1738132021622,3.18274,3142.0,3141.7,0.8137]
[1738132021933,6.36487,3142.3,3141.7,0.8137]
[1738132022137,0.7508,3142.6,3141.7,5.335193]
[1738132022304,3.18204,3142.7,3142.0,3.18259]
[1738132022508,3.18231,3142.4,3141.7,5.333133]
[1738132022720,0.7539,3142.9,3141.7,0.8137]
[1738132022721,3.18268,3142.0,3141.7,0.8137]
[1738132023109,3.13268,3142.0,3141.4,3.9739]
[1738132023304,3.18301,3141.7,3141.4,0.7889]
[1738132024349,3.18315,3141.6,3141.1,0.7869]
[1738132027542,0.77,3141.7,3141.1,0.7869]
[1738132027840,3.18294,3141.8,3141.2,3.25242315]
[1738132029842,3.18316,3141.6,3141.2,0.06893315]
[1738132030042,3.501476,3141.6,3141.2,0.06893315]
[1738132030198,3.18333,3141.4,3141.2,0.06893315]
[1738132030698,3.18339,3141.3,3141.2,0.06893315]
[1738132030942,3.18339,3141.3,3140.9,3.186]
[1738132031426,3.18339,3141.3,3141.0,0.06971208]
[1738132032610,3.577999,3141.3,3141.0,0.06971208]
[1738132032817,3.18352,3141.2,3141.0,0.06971208]
[1738132033300,3.18352,3141.2,3140.8,0.8008]
[1738132033739,3.577999,3141.3,3140.5,3.0]
[1738132033940,3.18363,3141.1,3140.5,3.7588]
[1738132034347,3.18363,3141.1,3140.6,0.06971208]
[1738132034798,3.1838,3140.9,3140.6,0.06971208]
[1738132035001,6.3673,3141.1,3140.6,0.30446627]
[1738132035333,3.18331,3141.4,3140.8,3.18383]
[1738132035702,3.18331,3141.4,3140.9,0.07018874]
[1738132035902,3.6097426,3141.4,3140.9,0.07018874]
[1738132036633,3.18347,3141.3,3140.9,0.07018874]
[1738132037140,3.18347,3141.3,3140.7,3.18399]
[1738132037298,3.18347,3141.3,3141.0,0.07018874]
[1738132037496,3.18347,3141.3,3141.1,0.07018874]
[1738132037738,3.18347,3141.3,3140.7,3.18399]
[1738132038039,3.18347,3141.3,3140.8,3.25406874]
[1738132038607,3.1835,3141.2,3140.8,0.07018874]
[1738132043841,3.18341,3141.3,3140.8,0.07018874]
[1738132044640,3.18341,3141.3,3140.8,0.30490308]
[1738132045664,3.18351,3141.2,3140.8,0.30490308]
[1738132048945,3.18351,3141.2,3140.9,0.23471434]
[1738132049344,3.18351,3141.2,3141.0,0.07058807]
[1738132050044,3.18359,3141.1,3141.0,0.07058807]
[1738132050259,3.95309,3141.1,3141.0,0.07058807]
[1738132050406,3.18369,3141.0,3140.9,0.23471434]
[1738132050606,3.18426,3140.5,3140.0,0.8265]
[1738132050811,3.18432,3140.4,3140.1,3.186]
[1738132051012,3.18432,3140.4,3140.1,3.25648501]
[1738132051332,3.18426,3140.5,3140.1,3.25648501]
[1738132051740,3.18426,3140.5,3140.2,0.23543002]
[1738132052148,3.18426,3140.5,3140.3,0.07048501]
[1738132052458,3.1844,3140.3,3140.2,0.23543002]
[1738132053533,6.3687,3140.4,3140.2,0.23543002]
[1738132054036,3.18437,3140.4,3140.2,0.23543002]
[1738132054238,3.18405,3140.7,3140.2,0.23543002]
[1738132054438,3.1841,3140.6,3140.3,0.7517]
[1738132054950,0.7755,3140.9,3140.0,0.8255]
[1738132055167,3.18444,3140.3,3140.0,0.8255]
[1738132055374,3.18457,3140.2,3139.9,0.23543002]
[1738132056037,3.18457,3140.2,3139.8,4.0125]
[1738132056231,3.18444,3140.3,3139.8,4.0125]
[1738132056435,3.18461,3140.1,3139.8,0.8255]
[1738132057161,3.18444,3140.3,3139.8,0.8255]
[1738132057861,3.18444,3140.3,3139.9,0.07112299]
[1738132058266,3.18459,3140.2,3139.9,0.07112299]
[1738132058771,3.18471,3140.0,3139.9,0.07112299]
[1738132059114,3.18471,3140.0,3139.6,3.9916]
[1738132059319,3.18458,3140.2,3139.7,0.07112299]
[1738132059519,3.18462,3140.1,3139.7,0.07112299]
[1738132059823,3.18467,3140.1,3139.7,0.07112299]
[1738132060247,3.1844,3140.3,3139.7,4.22708776]
[1738132060657,3.1844,3140.3,3139.7,4.46238363]
[1738132061630,3.18422,3140.5,3139.9,3.18479]
[1738132061836,3.18422,3140.5,3140.0,0.7958]
[1738132062151,3.18431,3140.4,3140.0,0.7958]
[1738132062452,3.18431,3140.4,3140.1,0.07121969]
[1738132062847,3.18418,3140.6,3140.1,0.07121969]
[1738132064218,3.18418,3140.6,3140.1,0.30638773]
[1738132064855,0.7691,3140.9,3140.1,0.30638773]
[1738132065058,3.18451,3140.2,3140.1,0.30638773]
[1738132065358,3.18451,3140.2,3140.1,0.07121969]
[1738132065574,3.18451,3140.2,3139.8,0.7868]
[1738132065776,3.18469,3140.1,3139.8,0.7868]
[1738132066661,3.18469,3140.1,3139.6,6.9964]
[1738132066856,0.7857,3140.4,3139.6,3.9964]
[1738132067064,3.18477,3140.0,3139.6,0.8094]
[1738132067447,6.36916,3140.2,3139.6,0.8094]
[1738132067631,3.18457,3140.2,3139.7,0.23526377]
[1738132067835,3.18461,3140.1,3139.7,0.23526377]
[1738132068559,3.18449,3140.3,3139.7,3.42024377]
[1738132068731,3.18461,3140.1,3139.7,0.23526377]
[1738132069330,3.18452,3140.2,3139.7,0.23526377]
[1738132070568,3.18462,3140.1,3139.7,0.23526377]
[1738132072680,3.18443,3140.3,3139.7,0.23526377]
[1738132072832,6.36853,3140.5,3139.8,6.37184]
[1738132073164,3.18424,3140.5,3139.9,3.1848]
[1738132073331,3.18424,3140.5,3140.0,0.8202]
[1738132073535,3.18424,3140.5,3140.0,0.89198676]
[1738132073845,3.18431,3140.4,3140.0,0.89198676]
[1738132074164,3.18431,3140.4,3140.1,0.23526377]
[1738132074644,3.18424,3140.5,3140.2,0.07178676]
[1738132074853,6.36854,3140.5,3140.2,0.07178676]
[1738132075033,3.18424,3140.5,3140.2,0.07178676]
[1738132075233,6.36854,3140.5,3140.2,0.07178676]
[1738132076472,3.18424,3140.5,3140.2,0.07178676]
[1738132076879,3.18433,3140.4,3140.2,0.07178676]
[1738132077454,6.36854,3140.5,3140.2,0.07178676]
[1738132077797,0.8323,3141.0,3140.2,0.07178676]
[1738132077935,3.18388,3140.9,3140.3,4.02557201]
[1738132078140,3.18388,3140.9,3140.4,3.59573588]
[1738132078339,3.18388,3140.9,3140.4,6.85170304]
[1738132078595,3.18388,3140.9,3140.4,3.66741304]
[1738132078891,6.36776,3140.9,3140.4,3.66741304]
[1738132079033,3.18396,3140.8,3140.4,3.66741304]
[1738132079433,3.18388,3140.9,3140.5,0.68294507]
[1738132079873,3.1839,3140.8,3140.6,0.07167716]
[1738132080074,3.184,3140.7,3140.6,0.07167716]
[1738132080596,3.09962725,3140.7,3140.6,0.07167716]
[1738132080962,3.1839,3140.8,3140.3,0.8094]
[1738132081149,3.18421,3140.5,3140.3,0.8094]
[1738132081352,3.18383,3140.9,3140.4,0.07167716]
[1738132081690,3.18347,3141.3,3140.7,3.18398]
[1738132081853,3.957,3141.5,3140.7,3.18398]
[1738132081854,3.1832,3141.5,3140.9,4.00559]
[1738132082197,3.1834,3141.3,3140.9,0.8218]
[1738132082500,3.1832,3141.5,3141.0,0.07116802]
[1738132083602,3.1832,3141.5,3141.0,0.3067931]
[1738132085103,3.1833,3141.4,3141.0,0.3067931]
[1738132085654,3.18342,3141.3,3141.0,0.3067931]
[1738132085860,3.1833,3141.4,3141.0,0.3067931]
[1738132086054,3.18312,3141.6,3141.0,0.77009221]
[1738132086359,3.18312,3141.6,3141.0,3.95372221]
[1738132086684,3.81000331,3141.8,3141.0,0.3067931]
[1738132086685,0.62708331,3141.8,3141.0,0.3067931]
[1738132086856,3.18359,3141.1,3141.0,0.3067931]
[1738132087060,3.18343,3141.3,3141.0,0.3067931]
[1738132087602,3.18324,3141.5,3141.0,0.07116802]
[1738132087765,6.3665,3141.5,3141.0,0.07116802]
[1738132087973,3.18294,3141.8,3141.2,3.18343]
[1738132088269,3.18299,3141.7,3141.3,3.25527242]
[1738132089055,0.7912,3142.1,3141.3,0.07027242]
[1738132089256,3.18309,3141.6,3141.1,4.00269]
[1738132089456,3.18309,3141.6,3141.4,0.07024022]
[1738132089686,3.18309,3141.6,3141.1,7.18769]
[1738132089886,3.18309,3141.6,3141.5,0.07024022]
[1738132090083,3.18309,3141.6,3141.2,0.96495847]
[1738132090256,3.18309,3141.6,3141.5,0.07024022]
[1738132090469,3.18309,3141.6,3141.1,7.18769]
[1738132090689,3.18309,3141.6,3141.5,0.07024022]
[1738132090855,3.18309,3141.6,3141.1,7.18769]
[1738132091061,3.18309,3141.6,3141.5,0.07024022]
[1738132091364,3.18309,3141.6,3141.1,7.18769]
[1738132091564,3.18309,3141.6,3141.5,0.07024022]
[1738132091772,3.18309,3141.6,3141.1,7.18769]
[1738132091959,3.18309,3141.6,3141.5,0.07024022]
[1738132092161,3.18289,3141.8,3141.1,7.18769]
[1738132092372,3.18299,3141.7,3141.5,0.07024022]
[1738132092605,3.18299,3141.7,3141.1,4.96764847]
[1738132092917,3.18299,3141.7,3141.6,0.07024022]
[1738132093110,3.18299,3141.7,3141.1,4.96764847]
[1738132093290,3.18299,3141.7,3141.6,0.07020157]
[1738132093486,3.18299,3141.7,3141.1,4.96764847]
[1738132093695,3.18299,3141.7,3141.6,0.07020157]
[1738132093895,3.18299,3141.7,3141.2,0.74295432]
[1738132094091,3.18289,3141.8,3141.6,0.07020157]